fUST/lending_fUST_20241229
["ID","MTS","AMOUNT","RATE_DAILY","PERIOD"]
[346945681,1735413042152,-500.0,0.00015796,2]
[346945682,1735413042161,-500.0,0.00015796,2]
[346945683,1735413042170,-500.0,0.00015796,2]
[346945684,1735413042179,-500.0,0.00015796,2]
[346945685,1735413042188,-546.51150757,0.00015796,2]
[346945686,1735413042197,-500.0,0.00015796,2]
[346945687,1735413042206,-500.0,0.00015796,2]
[346945688,1735413042215,-500.0,0.00015796,2]
[346945689,1735413042224,-500.0,0.00015796,2]
[346945690,1735413042233,-500.0,0.00015796,2]
[346945691,1735413042244,-500.0,0.00015796,2]
[346945692,1735413042253,-297.39,0.00015796,2]
[346945693,1735413042262,-500.0,0.00015796,2]
[346945694,1735413042271,-500.0,0.00015796,2]
[346945695,1735413042284,-500.0,0.00015796,2]
[346945696,1735413042293,-553.57,0.00015796,2]
[346945697,1735413042302,-500.0,0.00015796,2]
[346945698,1735413042311,-500.0,0.00015796,2]
[346945699,1735413042321,-500.0,0.00015796,2]
[346945700,1735413042331,-500.0,0.00015796,2]
[346945701,1735413042339,-500.0,0.00015796,2]
[346945702,1735413042348,-500.0,0.00015796,2]
[346945703,1735413042359,-500.0,0.00015796,2]
[346945704,1735413042368,-500.0,0.00015796,2]
[346945705,1735413042378,-500.0,0.00015796,2]
[346945706,1735413042387,-500.0,0.00015796,2]
[346945707,1735413042397,-519.03581768,0.00015796,2]
[346945708,1735413042406,-500.0,0.00015796,2]
[346945709,1735413042415,-500.0,0.00015796,2]
[346945710,1735413042426,-500.0,0.00015796,2]
[346945711,1735413042435,-500.0,0.00015797,2]
[346945712,1735413042446,-500.0,0.00015797,2]
[346945713,1735413042455,-500.0,0.00015797,2]
[346945714,1735413042464,-500.0,0.00015797,2]
[346945715,1735413042473,-500.0,0.00015797,2]
[346945716,1735413042482,-500.0,0.00015797,2]
[346945717,1735413042491,-500.0,0.00015797,2]
[346945718,1735413042500,-500.0,0.00015797,2]
[346945719,1735413042510,-500.0,0.00015797,2]
[346945720,1735413042519,-500.0,0.00015798,2]
[346945721,1735413042528,-500.0,0.00015798,2]
[346945722,1735413042538,-500.0,0.00015798,2]
[346945723,1735413042547,-500.0,0.00015798,2]
[346945724,1735413042556,-500.0,0.00015798,2]
[346945725,1735413042565,-500.0,0.00015798,2]
[346945726,1735413042575,-500.0,0.00015798,2]
[346945727,1735413042584,-500.0,0.00015798,2]
[346945728,1735413042594,-500.0,0.00015798,2]
[346945729,1735413042603,-484.55,0.00015798,2]
[346945730,1735413042613,-611.05740991,0.00015798,2]
[346945731,1735413042624,-500.0,0.00015798,2]
[346945732,1735413042635,-500.0,0.00015798,2]
[346945733,1735413042645,-500.0,0.00015798,2]
[346945734,1735413042654,-500.0,0.00015798,2]
[346945735,1735413042663,-593.52,0.00015799,2]
[346945736,1735413042673,-500.0,0.00015799,2]
[346945737,1735413042682,-500.0,0.00015799,2]
[346945738,1735413042692,-500.0,0.00015799,2]
[346945739,1735413042702,-500.0,0.00015799,2]
[346945740,1735413042711,-500.0,0.00015799,2]
[346945741,1735413042725,-223.8,0.00015799,2]
[346945742,1735413042736,-500.0,0.00016069,2]
[346945743,1735413042747,-500.0,0.00016069,2]
[346945744,1735413042756,-500.0,0.00016069,2]
[346945745,1735413042766,-500.0,0.00016069,2]
[346945747,1735413042776,-500.0,0.00016069,2]
[346945749,1735413042787,-500.0,0.00016069,2]
[346945751,1735413042797,-500.0,0.00016069,2]
[346945753,1735413042808,-500.0,0.00016069,2]
[346945754,1735413042818,-500.0,0.00016069,2]
[346945755,1735413042828,-500.0,0.00016069,2]
[346945756,1735413042837,-500.0,0.00016069,2]
[346945757,1735413042846,-500.0,0.00016069,2]
[346945758,1735413042857,-500.0,0.00016069,2]
[346945759,1735413042866,-500.0,0.00016069,2]
[346945760,1735413042877,-609.83,0.00016069,2]
[346945761,1735413042887,-500.0,0.00016069,2]
[346945762,1735413042897,-1904.54,0.00016069,2]
[346945763,1735413042906,-500.0,0.00016069,2]
[346945764,1735413042917,-500.0,0.00016069,2]
[346945765,1735413042927,-358.98,0.00016069,2]
[346945766,1735413042936,-500.0,0.0001607,2]
[346945767,1735413042945,-500.0,0.0001607,2]
[346945768,1735413042955,-500.0,0.0001607,2]
[346945769,1735413042964,-500.0,0.0001607,2]
[346945770,1735413042973,-500.0,0.0001607,2]
[346945771,1735413042983,-500.0,0.0001607,2]
[346945772,1735413042992,-500.0,0.0001607,2]
[346945773,1735413043002,-500.0,0.0001607,2]
[346945774,1735413043011,-500.0,0.0001607,2]
[346945775,1735413043020,-500.0,0.0001607,2]
[346945776,1735413043029,-500.0,0.0001607,2]
[346945777,1735413043038,-500.0,0.0001607,2]
[346945778,1735413043047,-426.18,0.0001607,2]
[346945779,1735413043057,-266.44,0.0001607,2]
[346945780,1735413043070,-276.17,0.0001607,2]
[346945781,1735413043083,-500.0,0.0001607,2]
[346945782,1735413043096,-500.0,0.0001607,2]
[346945783,1735413043108,-504.78,0.0001607,2]
[346945784,1735413043119,-500.0,0.0001607,2]
[346945785,1735413043129,-500.0,0.00016071,2]
[346945786,1735413043140,-500.0,0.00016071,2]
[346945787,1735413043154,-500.0,0.00016072,2]
[346945788,1735413043166,-941.17832168,0.00016073,2]
[346945789,1735413043178,-12061.39023594,0.00016073,2]
[346945790,1735413043190,-500.0,0.00016073,2]
[346945791,1735413043201,-251.18,0.00016073,2]
[346945792,1735413043213,-500.0,0.00016343,2]
[346945793,1735413043224,-500.0,0.00016343,2]
[346945794,1735413043237,-500.0,0.00016343,2]
[346945795,1735413043248,-522.72,0.00016343,2]
[346945796,1735413043261,-322.92,0.00016343,2]
[346945797,1735413043273,-495.54,0.00016343,2]
[346945798,1735413043290,-500.0,0.00016343,2]
[346945799,1735413043301,-448.8655367,0.00016343,2]
[346945800,1735413043313,-500.0,0.00016343,2]
[346945801,1735413043327,-1904.54,0.00016343,2]
[346945802,1735413043339,-500.0,0.00016343,2]
[346945803,1735413043352,-170.07,0.00016344,2]
[346945804,1735413043363,-359.58,0.00016344,2]
[346945805,1735413043375,-500.0,0.00016344,2]
[346945806,1735413043386,-500.0,0.00016346,2]
[346945807,1735413043396,-500.0,0.00016347,2]
[346945808,1735413043409,-200.0,0.00016438,2]
[346945810,1735413043421,-500.0,0.00016438,2]
[346945811,1735413043432,-500.0,0.00016438,2]
[346945812,1735413043443,-500.0,0.00016438,2]
[346945813,1735413043455,-500.0,0.00016617,2]
[346945814,1735413043466,-500.0,0.00016617,2]
[346945815,1735413043478,-217.93,0.00016617,2]
[346945816,1735413043489,-500.0,0.00016617,2]
[346945817,1735413043501,-500.0,0.00016617,2]
[346945818,1735413043513,-1904.54,0.00016617,2]
[346945819,1735413043525,-500.0,0.00016617,2]
[346945820,1735413043538,-635.52,0.00016618,2]
[346945821,1735413043550,-500.0,0.0001662,2]
[346945822,1735413043560,-500.0,0.00016621,2]
[346945823,1735413043570,-224.31150091,0.0001667,2]
[346945824,1735413043580,-170.553,0.00016811,2]
[346945825,1735413043589,-500.0,0.00016891,2]
[346945826,1735413043600,-500.0,0.00016891,2]
[346945827,1735413043611,-280.91,0.00016891,2]
[346945828,1735413043622,-500.0,0.00016891,2]
[346945829,1735413043636,-1904.54,0.00016891,2]
[346945830,1735413043649,-500.0,0.00016891,2]
[346945831,1735413043659,-500.0,0.00016894,2]
[346945832,1735413043669,-500.0,0.00016895,2]
[346945833,1735413043679,-304.61,0.00017165,2]
[346945834,1735413043690,-646.8,0.00017165,2]
[346945835,1735413043701,-500.0,0.00017165,2]
[346945836,1735413043713,-1904.54,0.00017165,2]
[346945837,1735413043723,-500.0,0.00017165,2]
[346945838,1735413043733,-500.0,0.00017168,2]
[346945839,1735413043743,-500.0,0.00017169,2]
[346945840,1735413043753,-500.0,0.00017439,2]
[346945841,1735413043763,-1904.54,0.00017439,2]
[346945842,1735413043774,-335.68,0.00017439,2]
[346945843,1735413043784,-500.0,0.00017442,2]
[346945844,1735413043795,-500.0,0.00017443,2]
[346945845,1735413043807,-500.0,0.00017713,2]
[346945846,1735413043818,-1904.54,0.00017713,2]
[346945847,1735413043829,-500.0,0.00017716,2]
[346945848,1735413043840,-500.0,0.00017717,2]
[346945849,1735413043851,-500.0,0.00017808,4]
[346945850,1735413043862,-224.31150091,0.00017917,2]
[346945851,1735413043873,-500.0,0.00017987,2]
[346945852,1735413043883,-1904.54,0.00017987,2]
[346945853,1735413043894,-500.0,0.0001799,2]
[346945854,1735413043906,-500.0,0.00017991,2]
[346945855,1735413043916,-42943.60608204,0.00018,2]
[346945856,1735413043927,-500.0,0.00018261,2]
[346945857,1735413043938,-1904.54,0.00018261,2]
[346945858,1735413043948,-500.0,0.00018264,2]
[346945859,1735413043959,-500.0,0.00018265,2]
[346945860,1735413043970,-500.0,0.00018535,2]
[346945861,1735413043980,-1904.54,0.00018535,2]
[346945862,1735413043991,-500.0,0.00018538,2]
[346945863,1735413044001,-500.0,0.00018539,2]
[346945864,1735413044012,-500.0,0.00018809,2]
[346945865,1735413044023,-1904.54,0.00018809,2]
[346945866,1735413044033,-500.0,0.00018812,2]
[346945867,1735413044043,-500.0,0.00018813,2]
[346945868,1735413044054,-1567.88811918,0.000189,2]
[346945869,1735413044238,-490.40668275,0.000189,2]
[346945870,1735413044251,-431.85156847,0.000189,2]
[346945871,1735413044263,-2358.50302232,0.000189,2]
[346945872,1735413044310,-481.38745355,0.000189,2]
[346945891,1735413046382,-567.1975005,0.000189,2]
[346945892,1735413046392,-151.0,0.000189,2]
[346945893,1735413046402,-151.0,0.000189,2]
[346945894,1735413046411,-151.0,0.000189,2]
[346945895,1735413046420,-121.52113867,0.000189,2]
[346945896,1735413046437,-29.47886133,0.000189,2]
[346945897,1735413046446,-151.0,0.000189,2]
[346945898,1735413046456,-151.0,0.000189,2]
[346945899,1735413046465,-198.3295,0.000189,2]
[346945900,1735413046474,-198.3295,0.000189,2]
[346945901,1735413046484,-300.950728,0.000189,2]
[346945902,1735413046493,-151.0,0.000189,2]
[346945903,1735413046503,-151.0,0.000189,2]
[346945904,1735413046512,-151.0,0.000189,2]
[346945905,1735413046521,-151.0,0.000189,2]
[346945906,1735413046530,-92871.97906367,0.00019,2]
[346945907,1735413046541,-419.52770081,0.00019,2]
[346945908,1735413930140,-400.0,0.00013695,2]
[346945909,1735413930163,-400.0,0.00013833,2]
[346945910,1735413930185,-400.0,0.00013973,2]
[346945911,1735413930208,-165.53812034,0.00015422,2]
[346945912,1735413930232,-151.0,0.00015513,2]
[346945913,1735413930254,-300.0,0.0001552,2]
[346945914,1735413930277,-500.0,0.00015521,2]
[346945915,1735413930300,-500.0,0.00015521,2]
[346945916,1735413930443,-67.50842633,0.00015521,2]
[346945917,1735414032098,-978.19308749,0.00015366,2]
[346945918,1735414033100,-4.77183562,0.00015366,2]
[346945919,1735414033122,-300.0,0.0001552,2]
[346945920,1735414033144,-432.49157367,0.00015521,2]
[346945921,1735414033168,-500.0,0.00015521,2]
[346945922,1735414033191,-123.90319172,0.00015521,2]
[346945923,1735414035086,-376.09680828,0.00015521,2]
[346945924,1735414035108,-29.0782364,0.00015521,2]
[346945925,1735414035135,-470.9217636,0.00015521,2]
[346945926,1735414035156,-371.05013997,0.00015521,2]
[346945927,1735414051093,-128.94986003,0.00015521,2]
[346945928,1735414051115,-321.05013997,0.00015521,2]
[346945976,1735414232617,-264.0,0.0001552,2]
[346945979,1735414232628,-166.72422809,0.00015521,2]
[346945981,1735414232638,-156.17402756,0.00015521,2]
[346945982,1735414232649,-500.0,0.00015521,2]
[346945984,1735414232661,-427.16879062,0.00015521,2]
[346946014,1735414238436,-72.83120938,0.00015521,2]
[346946015,1735414238448,-500.0,0.00015521,2]
[346946016,1735414238460,-500.0,0.00015521,2]
[346946017,1735414238470,-500.0,0.00015521,2]
[346946018,1735414238483,-500.0,0.00015521,2]
[346946019,1735414238495,-500.0,0.00015521,2]
[346946020,1735414238506,-178.94986003,0.00015521,2]
[346946021,1735414238516,-500.0,0.00015521,2]
[346946022,1735414238527,-500.0,0.00015521,2]
[346946023,1735414238537,-500.0,0.00015521,2]
[346946025,1735414238547,-500.0,0.00015521,2]
[346946027,1735414238557,-500.0,0.00015521,2]
[346946028,1735414238568,-500.0,0.00015521,2]
[346946029,1735414238578,-256.3842384,0.00015521,2]
[346946030,1735414238591,-243.6157616,0.00015521,2]
[346946031,1735414238602,-172.60419483,0.00015521,2]
[346946032,1735414238613,-208.68883515,0.00015521,2]
[346946033,1735414238625,-878.53,0.00015521,2]
[346946034,1735414238635,-500.0,0.00015521,2]
[346946035,1735414238646,-500.0,0.00015521,2]
[346946036,1735414238657,-1883.11,0.00015521,2]
[346946037,1735414238668,-184.56,0.00015521,2]
[346946038,1735414238677,-501.59104386,0.00015522,2]
[346946039,1735414238688,-500.0,0.00015522,2]
[346946040,1735414238698,-579.61497131,0.00015522,2]
[346946041,1735414238708,-500.3499789,0.00015522,2]
[346946042,1735414238719,-500.42765598,0.00015522,2]
[346946043,1735414238729,-501.48644376,0.00015522,2]
[346946044,1735414238740,-500.60432043,0.00015522,2]
[346946045,1735414238751,-501.18358387,0.00015522,2]
[346946046,1735414238761,-500.96236346,0.00015522,2]
[346946047,1735414238771,-500.0,0.00015522,2]
[346946048,1735414238780,-500.0,0.00015522,2]
[346946049,1735414238791,-501.97760397,0.00015522,2]
[346946050,1735414238800,-500.0,0.00015522,2]
[346946051,1735414238810,-501.93125093,0.00015522,2]
[346946052,1735414238820,-500.0,0.00015522,2]
[346946053,1735414238831,-500.0,0.00015522,2]
[346946054,1735414238841,-500.0,0.00015522,2]
[346946055,1735414238851,-500.0,0.00015522,2]
[346946056,1735414238861,-500.0,0.00015522,2]
[346946057,1735414238871,-500.0,0.00015522,2]
[346946058,1735414238881,-361.43466287,0.00015522,2]
[346946059,1735414238891,-500.0,0.00015522,2]
[346946060,1735414238905,-500.0,0.00015522,2]
[346946061,1735414238916,-263.15215366,0.00015522,2]
[346946062,1735414238926,-500.0,0.00015522,2]
[346946063,1735414238936,-191.94,0.00015522,2]
[346946064,1735414238947,-392.81575247,0.00015522,2]
[346946065,1735414238958,-500.0,0.00015522,2]
[346946066,1735414238968,-500.0,0.00015522,2]
[346946067,1735414238981,-153.21,0.00015522,2]
[346946068,1735414238991,-500.0,0.00015522,2]
[346946069,1735414239002,-500.0,0.00015522,2]
[346946070,1735414239012,-257.03868673,0.00015522,2]
[346946071,1735414239023,-137.38731182,0.00015522,2]
[346946109,1735414240525,-362.61268818,0.00015522,2]
[346946111,1735414240537,-500.0,0.00015522,2]
[346946113,1735414240547,-500.0,0.00015522,2]
[346946114,1735414240558,-500.0,0.00015522,2]
[346946118,1735414240691,-500.0,0.00015523,2]
[346946119,1735414240701,-137.38732182,0.00015523,2]
[346946120,1735414240713,-456.90267818,0.00015523,2]
[346946121,1735414240723,-583.7,0.00015795,2]
[346946122,1735414240732,-500.0,0.00015795,2]
[346946123,1735414240742,-267.52892593,0.00015795,2]
[346946124,1735414240751,-878.53,0.00015795,2]
[346946125,1735414240761,-500.0,0.00015795,2]
[346946126,1735414240770,-500.0,0.00015796,2]
[346946127,1735414240779,-500.0,0.00015796,2]
[346946128,1735414240788,-500.0,0.00016069,2]
[346946129,1735414240798,-21.38384603,0.00016069,2]
[346946130,1735414240810,-857.14615397,0.00016069,2]
[346946131,1735414240820,-500.0,0.00016069,2]
[346946132,1735414240829,-500.0,0.0001607,2]
[346946133,1735414240838,-137.4574168,0.00016343,2]
[346946180,1735415137115,-184.78951712,0.00013644,2]
[346946181,1735415137137,-184.78951712,0.00013782,2]
[346946182,1735415137157,-2832.77396543,0.00013922,2]
[346946183,1735415230099,-538.73790769,0.00013644,2]
[346946184,1735415230123,-728.44612127,0.00013782,2]
[346946185,1735415234124,-252.52154657,0.00013782,2]
[346946186,1735415234145,-980.96766784,0.00013922,2]
[346946187,1735415234170,-400.0,0.00013973,2]
[346946188,1735415234194,-854.29876981,0.00014986,2]
[346946189,1735415234224,-299.21505911,0.00014987,2]
[346946190,1735415234257,-277.99055866,0.00014987,2]
[346946191,1735415239101,-181.97357093,0.00014987,2]
[346946192,1735415239124,-854.29876981,0.00014995,2]
[346946193,1735415239147,-558.35987517,0.00014996,2]
[346946262,1735415438665,-212.83561888,0.00013833,2]
[346946263,1735415438676,-400.0,0.00013973,2]
[346946264,1735415438687,-190.603783,0.00014519,2]
[346946265,1735415438697,-200.81931353,0.00014996,2]
[346946266,1735415438708,-759.1791887,0.00015,2]
[346946267,1735415438720,-854.29876981,0.00015,2]
[346946268,1735415438731,-150.0,0.00015,2]
[346946269,1735415438741,-184.78919471,0.0001542,2]
[346946270,1735415438751,-300.0,0.00015518,2]
[346946271,1735415438761,-484.41711928,0.00015518,2]
[346946272,1735415438771,-500.0,0.00015518,2]
[346946273,1735415438781,-500.0,0.00015518,2]
[346946274,1735415438791,-500.0,0.00015519,2]
[346946275,1735415438800,-500.0,0.00015519,2]
[346946276,1735415438810,-500.0,0.00015519,2]
[346946277,1735415438819,-256.00984912,0.00015519,2]
[346946278,1735415438831,-219.31015088,0.00015519,2]
[346946279,1735415438841,-500.0,0.00015519,2]
[346946280,1735415438850,-500.0,0.00015519,2]
[346946281,1735415438860,-500.0,0.00015519,2]
[346946282,1735415438870,-459.07307956,0.00015519,2]
[346946283,1735415438880,-500.0,0.00015519,2]
[346946284,1735415438889,-500.0,0.00015519,2]
[346946285,1735415438899,-500.0,0.00015519,2]
[346946286,1735415438908,-500.0,0.00015519,2]
[346946287,1735415438918,-455.32485765,0.00015519,2]
[346946288,1735415440028,-44.67514235,0.00015519,2]
[346946289,1735415440055,-500.0,0.00015519,2]
[346946290,1735415440079,-265.71,0.00015519,2]
[346946291,1735415440107,-500.0,0.00015519,2]
[346946292,1735415440126,-473.93,0.00015519,2]
[346946293,1735415440136,-500.0,0.00015519,2]
[346946294,1735415440145,-278.93,0.00015519,2]
[346946295,1735415440155,-500.0,0.00015519,2]
[346946296,1735415440165,-500.0,0.00015519,2]
[346946297,1735415440174,-500.0,0.00015519,2]
[346946298,1735415440184,-263.85,0.00015519,2]
[346946299,1735415440193,-500.0,0.00015519,2]
[346946300,1735415440203,-500.0,0.00015519,2]
[346946301,1735415440212,-2927.49,0.00015519,2]
[346946302,1735415440222,-500.0,0.00015519,2]
[346946303,1735415440232,-500.0,0.00015519,2]
[346946304,1735415440241,-500.0,0.00015519,2]
[346946305,1735415440250,-500.0,0.00015519,2]
[346946306,1735415440260,-2018.7,0.00015519,2]
[346946307,1735415440269,-500.0,0.00015519,2]
[346946308,1735415440280,-500.0,0.00015519,2]
[346946309,1735415440290,-495.56907404,0.00015519,2]
[346946310,1735415440300,-500.0,0.00015519,2]
[346946311,1735415440310,-157.77578361,0.00015519,2]
[346946312,1735415440323,-342.22421639,0.00015519,2]
[346946313,1735415440332,-500.0,0.00015519,2]
[346946314,1735415440342,-819.55828079,0.0001552,2]
[346946315,1735415440352,-9329.954615,0.0001552,2]
[346946316,1735415440362,-512.33,0.0001552,2]
[346946317,1735415440371,-500.0,0.0001552,2]
[346946318,1735415440380,-500.0,0.0001552,2]
[346946319,1735415440390,-500.0,0.0001552,2]
[346946320,1735415440399,-500.0,0.0001552,2]
[346946321,1735415440408,-500.0,0.0001552,2]
[346946323,1735415440418,-500.0,0.0001552,2]
[346946325,1735415440427,-500.0,0.0001552,2]
[346946327,1735415440437,-500.0,0.0001552,2]
[346946328,1735415440446,-500.0,0.0001552,2]
[346946330,1735415440455,-500.0,0.0001552,2]
[346946331,1735415440464,-500.0,0.0001552,2]
[346946332,1735415440474,-500.0,0.0001552,2]
[346946333,1735415440483,-500.0,0.0001552,2]
[346946334,1735415440493,-500.0,0.0001552,2]
[346946335,1735415440502,-221.09059367,0.0001552,2]
[346946337,1735415440516,-278.90940633,0.0001552,2]
[346946339,1735415440526,-500.0,0.0001552,2]
[346946340,1735415440535,-619.03020251,0.0001552,2]
[346946341,1735415440547,-500.0,0.0001552,2]
[346946342,1735415440557,-500.0,0.0001552,2]
[346946343,1735415440566,-500.0,0.0001552,2]
[346946344,1735415440575,-500.0,0.0001552,2]
[346946345,1735415440585,-500.0,0.0001552,2]
[346946347,1735415440594,-324.82731517,0.0001552,2]
[346946349,1735415440606,-175.17268483,0.0001552,2]
[346946352,1735415440615,-500.0,0.0001552,2]
[346946358,1735415440750,-500.0,0.0001552,2]
[346946359,1735415440761,-500.0,0.0001552,2]
[346946360,1735415440771,-500.0,0.0001552,2]
[346946361,1735415440781,-500.0,0.0001552,2]
[346946362,1735415440790,-500.0,0.0001552,2]
[346946363,1735415440799,-500.0,0.0001552,2]
[346946364,1735415440808,-500.0,0.0001552,2]
[346946365,1735415440818,-532.69738055,0.0001552,2]
[346946366,1735415440827,-500.0,0.0001552,2]
[346946367,1735415440837,-500.0,0.0001552,2]
[346946368,1735415440847,-500.0,0.0001552,2]
[346946369,1735415440861,-135.86479589,0.0001552,2]
[346946370,1735415440912,-500.0,0.00015519,2]
[346946371,1735415440921,-364.13520411,0.0001552,2]
[346946372,1735415440931,-500.0,0.0001552,2]
[346946373,1735415440941,-500.0,0.0001552,2]
[346946374,1735415440950,-500.0,0.0001552,2]
[346946375,1735415440960,-500.0,0.0001552,2]
[346946376,1735415440969,-516.90319376,0.0001552,2]
[346946377,1735415440978,-500.0,0.0001552,2]
[346946378,1735415440988,-500.0,0.0001552,2]
[346946379,1735415440997,-388.76919749,0.0001552,2]
[346946380,1735415441006,-500.0,0.0001552,2]
[346946381,1735415441016,-500.0,0.0001552,2]
[346946382,1735415441025,-500.0,0.0001552,2]
[346946383,1735415441035,-500.0,0.0001552,2]
[346946384,1735415441044,-500.0,0.0001552,2]
[346946385,1735415441054,-500.0,0.0001552,2]
[346946386,1735415441063,-500.0,0.0001552,2]
[346946387,1735415441072,-500.0,0.0001552,2]
[346946388,1735415441081,-563.60129156,0.0001552,2]
[346946389,1735415441091,-500.0,0.0001552,2]
[346946390,1735415441100,-500.0,0.0001552,2]
[346946391,1735415441110,-424.16611396,0.0001552,2]
[346946392,1735415441122,-75.83388604,0.0001552,2]
[346946393,1735415441131,-500.0,0.0001552,2]
[346946394,1735415441141,-500.0,0.0001552,2]
[346946395,1735415441150,-500.0,0.0001552,2]
[346946396,1735415441160,-500.0,0.0001552,2]
[346946397,1735415441169,-500.0,0.0001552,2]
[346946398,1735415441179,-500.0,0.0001552,2]
[346946399,1735415441188,-500.0,0.0001552,2]
[346946400,1735415441198,-500.0,0.0001552,2]
[346946401,1735415441207,-500.0,0.0001552,2]
[346946402,1735415441216,-500.0,0.0001552,2]
[346946403,1735415441225,-500.0,0.0001552,2]
[346946404,1735415441235,-500.0,0.0001552,2]
[346946405,1735415441244,-500.0,0.0001552,2]
[346946406,1735415441253,-500.0,0.0001552,2]
[346946407,1735415441263,-500.0,0.0001552,2]
[346946408,1735415441272,-500.0,0.0001552,2]
[346946409,1735415441287,-500.0,0.0001552,2]
[346946410,1735415441296,-500.0,0.0001552,2]
[346946411,1735415441306,-500.0,0.0001552,2]
[346946412,1735415441316,-539.93542246,0.0001552,2]
[346946413,1735415441326,-500.0,0.0001552,2]
[346946414,1735415441335,-500.0,0.0001552,2]
[346946415,1735415441345,-500.0,0.0001552,2]
[346946416,1735415441354,-500.0,0.0001552,2]
[346946417,1735415441364,-500.0,0.0001552,2]
[346946418,1735415441374,-500.0,0.0001552,2]
[346946419,1735415441383,-2018.7,0.0001552,2]
[346946420,1735415441394,-2018.7,0.0001552,2]
[346946421,1735415441417,-2018.7,0.0001552,2]
[346946422,1735415441444,-971.9736665,0.0001552,2]
[346946476,1735415443697,-313.26257089,0.00015518,2]
[346946484,1735415446659,-355.0,0.00015365,2]
[346946485,1735415446669,-203.67489105,0.00015518,2]
[346946486,1735415446679,-500.0,0.00015519,2]
[346946487,1735415446688,-1046.7263335,0.0001552,2]
[346946488,1735415446698,-500.0,0.0001552,2]
[346946489,1735415446707,-500.0,0.0001552,2]
[346946490,1735415446716,-500.0,0.0001552,2]
[346946491,1735415446726,-500.0,0.0001552,2]
[346946492,1735415446735,-500.0,0.0001552,2]
[346946493,1735415446744,-553.89248825,0.0001552,2]
[346946494,1735415446753,-500.0,0.0001552,2]
[346946495,1735415446762,-500.0,0.0001552,2]
[346946496,1735415446771,-500.0,0.0001552,2]
[346946497,1735415446780,-500.0,0.0001552,2]
[346946498,1735415446790,-500.0,0.00015521,2]
[346946499,1735415446799,-500.0,0.00015521,2]
[346946500,1735415446808,-500.0,0.00015521,2]
[346946501,1735415446817,-500.0,0.00015521,2]
[346946502,1735415446827,-500.0,0.00015521,2]
[346946503,1735415446836,-500.0,0.00015521,2]
[346946504,1735415446845,-500.0,0.00015521,2]
[346946505,1735415446854,-500.0,0.00015521,2]
[346946506,1735415446863,-500.0,0.00015521,2]
[346946507,1735415446872,-500.0,0.00015521,2]
[346946508,1735415446881,-500.0,0.00015521,2]
[346946509,1735415446899,-500.0,0.00015521,2]
[346946510,1735415446910,-500.0,0.00015521,2]
[346946511,1735415446919,-500.0,0.00015521,2]
[346946512,1735415446930,-500.0,0.00015521,2]
[346946513,1735415446939,-500.0,0.00015521,2]
[346946514,1735415446949,-300.89387254,0.00015521,2]
[346946515,1735415446959,-500.0,0.00015521,2]
[346946516,1735415446968,-500.0,0.00015521,2]